bitfinex/quotes_BTCUSD_20260126
["timestamp","ask_amount","ask_price","bid_price","bid_amount"]
[1769386786799,0.75187204,87007.0,86991.0,0.11149544]
[1769386787447,0.0574607,87016.0,86991.0,0.11149544]
[1769386787448,0.75187204,87013.0,86994.0,0.01149504]
[1769386787665,0.27578653,87023.0,86991.0,0.12025988]
[1769386787666,0.01149161,87020.0,87000.0,0.27809357]
[1769386787870,0.01149134,87022.0,86999.0,0.01149438]
[1769386787871,0.01149147,87021.0,87001.0,1.440462]
[1769386788074,1.05584565,87021.0,87001.0,1.440462]
[1769386788282,0.76336365,87020.0,87001.0,1.440462]
[1769386788489,0.75187204,87019.0,87001.0,1.440462]
[1769386788691,0.75187204,87019.0,87001.0,1.45195612]
[1769386788968,0.75187204,87019.0,87002.0,1.17386241]
[1769386789176,0.75187204,87019.0,87002.0,1.16236843]
[1769386789372,0.29248214,87020.0,87002.0,1.17386241]
[1769386789588,0.75187204,87028.0,87005.0,0.27809357]
[1769386789790,0.75187204,87028.0,87008.0,0.27809357]
[1769386790084,0.75187204,87028.0,87007.0,0.01149332]
[1769386790085,0.17656,87027.0,87010.0,1.16236843]
[1769386790316,0.17656,87027.0,87011.0,0.27809357]
[1769386790700,0.18805068,87027.0,87011.0,0.27809357]
[1769386790950,0.17656,87027.0,87011.0,0.27823481]
[1769386791155,0.18805068,87027.0,87011.0,0.27823481]
[1769386791783,0.75187204,87028.0,87011.0,0.27823481]
[1769386792002,1.05584473,87028.0,87011.0,0.27823481]
[1769386792206,0.01149068,87027.0,87011.0,0.27823481]
[1769386792755,0.01149081,87026.0,87011.0,0.27823481]
[1769386793138,0.75187204,87027.0,87011.0,0.27823481]
[1769386793563,0.29248214,87028.0,87012.0,1.17386109]
[1769386793696,1.04435418,87028.0,87012.0,1.440462]
[1769386793935,0.75187204,87027.0,87011.0,0.00014124]
[1769386794161,1.05584486,87027.0,87011.0,0.00014124]
[1769386794495,0.30397282,87027.0,87011.0,0.00014124]
[1769386794635,0.75187204,87026.0,87011.0,0.00014124]
[1769386796315,0.76336285,87026.0,87011.0,0.00014124]
[1769386796518,0.75187204,87026.0,87011.0,0.00014124]
[1769386796716,0.01149095,87025.0,87011.0,0.00014124]
[1769386796894,0.75187204,87023.0,87011.0,0.00014124]
[1769386797294,0.29248214,87027.0,87011.0,0.00014124]
[1769386797502,0.30397282,87027.0,87011.0,0.00014124]
[1769386797728,0.29248214,87022.0,87011.0,0.00014124]
[1769386797929,1.04435418,87021.0,87011.0,0.00014124]
[1769386798531,0.01149147,87021.0,87011.0,0.00014124]
[1769386798704,1.04435418,87019.0,87011.0,0.00014124]
[1769386798910,0.00014124,87011.0,86999.0,0.17652]
[1769386799124,1.04435559,87011.0,86999.0,0.00014127]
[1769386799480,1.04421435,87011.0,86999.0,0.00014127]
[1769386799681,0.29248214,87011.0,86999.0,0.00014127]
[1769386800017,0.75173221,87015.0,86999.0,0.00014127]
[1769386800448,0.0002,87039.0,87002.0,1.16236843]
[1769386800449,0.01149081,87026.0,87002.0,1.16236843]
[1769386800648,0.29248214,87026.0,87006.0,1.16236843]
[1769386800848,1.04421435,87026.0,87007.0,1.17386175]
[1769386801016,0.01148989,87033.0,87012.0,0.01149266]
[1769386801254,0.23396763,87036.0,87015.0,1.16236843]
[1769386801452,0.23396763,87036.0,87009.0,0.05746523]
[1769386801453,0.01149015,87031.0,87016.0,1.440462]
[1769386801737,0.05751092,87016.0,87011.0,1.16236843]
[1769386801858,0.05751092,87016.0,87013.0,1.16236843]
[1769386802226,0.05751092,87016.0,87008.0,0.01149319]
[1769386802227,0.05751092,87016.0,87014.0,0.27809357]
[1769386802479,0.05751092,87016.0,87015.0,1.16236843]
[1769386803509,0.24545704,87036.0,87018.0,1.13106284]
[1769386803510,0.17652,87036.0,87018.0,1.13106284]
[1769386803738,0.17652,87036.0,87018.0,1.14255471]
[1769386803966,0.0116891,87039.0,87027.0,0.01149068]
[1769386803967,0.0002,87039.0,87027.0,0.01149068]
[1769386804182,0.0002,87039.0,87033.0,0.01148989]
[1769386804421,0.0002,87039.0,87032.0,0.30254129]
[1769386804629,0.0002,87039.0,87033.0,1.13106284]
[1769386805078,0.0002,87039.0,87035.0,0.29105127]
[1769386805288,0.0002,87039.0,87036.0,1.13106284]
[1769386805704,0.0002,87039.0,87033.0,0.01163116]
[1769386806112,0.0002,87039.0,87036.0,1.13106284]
[1769386806326,0.0002,87039.0,87038.0,1.42211411]
[1769386807182,0.0002,87051.0,87039.0,0.0114891]
[1769386807410,0.0002,87051.0,87041.0,1.14255167]
[1769386807638,0.0002,87051.0,87043.0,1.42211411]
[1769386808493,0.0002,87051.0,87034.0,0.01148976]
[1769386808692,0.01,87043.0,87039.0,1.13106284]
[1769386809375,0.0002,87051.0,87039.0,1.13106284]
[1769386809756,0.0002,87051.0,87039.0,1.14255194]
[1769386809976,0.0002,87051.0,87041.0,0.01148883]
[1769386810305,0.0002,87051.0,87040.0,0.01148897]
[1769386810520,0.0002,87051.0,87041.0,0.01148883]
[1769386810721,0.0002,87051.0,87038.0,0.3025405]
[1769386811399,0.0002,87051.0,87038.0,0.01148923]
[1769386811603,0.80507623,87037.0,87033.0,0.17662127]
[1769386811783,0.01,87038.0,87033.0,0.17662127]
[1769386811989,0.0002,87051.0,87033.0,1.30768411]
[1769386812226,0.0002,87051.0,87035.0,0.01148963]
[1769386812442,0.0002,87051.0,87037.0,0.01148936]
[1769386812645,0.0002,87051.0,87037.0,1.13106284]
[1769386812859,0.0002,87051.0,87037.0,1.1425522]
[1769386813205,0.0002,87051.0,87037.0,1.13106284]
[1769386813610,0.28278519,87048.0,87033.0,0.17662127]
[1769386813812,0.28278519,87046.0,87033.0,0.17662127]
[1769386814035,1.08786142,87046.0,87033.0,0.17662127]
[1769386814748,0.80507623,87046.0,87033.0,0.00014127]
[1769386814947,0.80507623,87042.0,87033.0,0.00014127]
[1769386815150,0.28278519,87039.0,87033.0,0.00014127]
[1769386815367,0.80507623,87037.0,87033.0,0.00014127]
[1769386815565,0.80507623,87035.0,87033.0,0.00014127]
[1769386815768,0.28278519,87036.0,87033.0,0.00014127]
[1769386815978,0.27980228,87046.0,87033.0,0.00014127]
[1769386816155,0.0114887,87042.0,87033.0,0.00014127]
[1769386816355,0.80507623,87039.0,87033.0,0.00014127]
[1769386816599,0.80493637,87038.0,87026.0,0.17648]
[1769386816814,0.80493637,87038.0,87026.0,0.17662137]
[1769386817076,0.81642573,87037.0,87026.0,0.17662137]
[1769386817198,1.08473865,87037.0,87026.0,0.17662137]
[1769386817405,0.27980228,87037.0,87026.0,0.17662137]
[1769386819344,0.27980228,87037.0,87027.0,0.01149068]
[1769386819562,0.80493637,87065.0,87045.0,0.01148831]
[1769386819773,0.27980228,87067.0,87049.0,0.01148778]
[1769386819986,0.27980228,87067.0,87048.0,0.29348993]
[1769386819987,0.27980228,87067.0,87050.0,1.13468408]
[1769386820202,0.27980228,87067.0,87048.0,0.28200202]
[1769386820410,0.27980228,87067.0,87050.0,1.08873354]
[1769386820613,0.27980228,87067.0,87051.0,1.07724589]
[1769386821219,0.29128768,87067.0,87051.0,1.07724589]
[1769386821454,0.27980228,87067.0,87051.0,1.07724589]
[1769386822099,0.27980228,87067.0,87051.0,1.0887334]
[1769386822309,0.0004003,87068.0,87054.0,0.28200202]
[1769386822489,0.0004003,87068.0,87055.0,1.08873288]
[1769386822722,0.0004003,87068.0,87055.0,1.07724589]
[1769386823428,0.0004003,87068.0,87055.0,1.08873288]
[1769386823630,0.07002073,87074.0,87058.0,0.29348861]
[1769386823834,0.07002073,87074.0,87059.0,0.01148646]
[1769386824079,0.07002073,87074.0,87060.0,0.01148633]
[1769386824296,0.27980228,87083.0,87063.0,1.08873182]
[1769386824506,1.4244464,87083.0,87064.0,0.28200202]
[1769386824654,1.43592969,87083.0,87064.0,0.28200202]
[1769386824857,0.17668,87087.0,87058.0,0.00046999]
[1769386825067,1.4244464,87068.0,87050.0,0.29348967]
[1769386825357,0.00046999,87068.0,87057.0,0.28200202]
[1769386825518,0.00046999,87068.0,87031.0,0.05050882]
[1769386825519,0.01148342,87082.0,87062.0,0.28200202]
[1769386825858,0.01148342,87082.0,87064.0,0.28200202]
[1769386825859,0.01148356,87081.0,87064.0,0.28200202]
[1769386826267,1.1565931,87080.0,87064.0,0.28200202]
[1769386826599,0.01148395,87078.0,87064.0,0.28200202]
[1769386826818,1.15659349,87077.0,87062.0,0.00014137]
[1769386827420,1.14510941,87077.0,87062.0,0.00014137]
[1769386827629,0.29128584,87081.0,87062.0,1.35938928]
[1769386828004,1.14510941,87080.0,87062.0,0.28214339]
[1769386828204,1.14510941,87080.0,87063.0,1.07724589]
[1769386828454,0.27980228,87081.0,87065.0,1.35924791]
[1769386828970,0.27980228,87081.0,87065.0,1.37073358]
[1769386829531,0.27980228,87081.0,87065.0,1.35924791]
[1769386829741,1.1565931,87080.0,87065.0,0.28200202]
[1769386830058,1.42491169,87079.0,87062.0,0.00014137]
[1769386830261,1.42491169,87079.0,87062.0,1.07738726]
[1769386830439,1.42491169,87079.0,87063.0,0.29348795]
[1769386830627,1.42491169,87079.0,87063.0,1.37073384]
[1769386830823,1.42491169,87079.0,87064.0,0.0114858]
[1769386831031,1.42491169,87079.0,87065.0,0.01148567]
[1769386831325,0.0002,87087.0,87068.0,0.01148527]
[1769386831568,1.43659446,87087.0,87068.0,0.28200202]
[1769386831778,1.14510941,87086.0,87068.0,0.28200202]
[1769386832112,1.14510941,87086.0,87068.0,0.29348729]
[1769386832315,1.14510941,87086.0,87070.0,0.28200202]
[1769386832524,0.0002,87087.0,87073.0,0.01148461]
[1769386832729,0.0002,87087.0,87074.0,1.07724589]
[1769386832937,0.0002,87087.0,87072.0,0.28200202]
[1769386833144,0.30373323,87106.0,87090.0,1.09094952]
[1769386833351,0.30373323,87106.0,87087.0,0.0002]
[1769386833352,0.01148026,87106.0,87091.0,0.29272807]
[1769386833553,1.08335393,87103.0,87083.0,1.09094952]
[1769386833778,1.08335393,87103.0,87086.0,1.09094952]
[1769386834008,1.08335393,87103.0,87087.0,1.09094952]
[1769386834287,0.01148079,87102.0,87087.0,1.09109089]
[1769386834603,1.09483459,87103.0,87087.0,1.09109089]
[1769386834748,0.01148092,87101.0,87087.0,1.09109089]
[1769386834950,0.01148105,87100.0,87087.0,1.09109089]
[1769386835155,0.01148079,87102.0,87087.0,1.09109089]
[1769386835361,1.08335393,87103.0,87087.0,1.09109089]
[1769386835651,0.31521362,87105.0,87087.0,1.09109089]
[1769386835852,0.01148066,87103.0,87087.0,0.00014137]
[1769386836079,0.01148118,87099.0,87087.0,0.00014137]
[1769386836238,0.00965862,87086.0,87075.0,0.29272807]
[1769386836436,1.08335393,87091.0,87075.0,0.2928695]
[1769386836641,0.01148237,87090.0,87075.0,0.2928695]
[1769386836855,1.09483617,87091.0,87075.0,0.2928695]
[1769386837240,2.35184369,87159.0,87078.0,0.29272807]
[1769386837241,0.01148039,87105.0,87078.0,0.29272807]
[1769386837418,0.01148066,87103.0,87091.0,0.00034138]
[1769386837627,0.01148092,87101.0,87088.0,1.38367759]
[1769386837759,0.01148079,87102.0,87088.0,1.38367759]
[1769386838378,0.01148052,87104.0,87088.0,1.38367759]
[1769386838785,0.01148052,87104.0,87088.0,1.34920696]
[1769386839211,1.08335393,87107.0,87088.0,1.34920696]
[1769386839416,1.08335393,87103.0,87088.0,0.25825744]
[1769386839985,0.01148092,87101.0,87088.0,0.25825744]
[1769386840194,0.01148079,87102.0,87088.0,0.25825744]
[1769386840382,0.01148092,87101.0,87084.0,1.09094952]
[1769386840613,0.01148105,87100.0,87084.0,1.09094952]
[1769386841171,0.01148131,87098.0,87084.0,1.09094952]
[1769386841503,1.15224084,87100.0,87083.0,0.29272807]
[1769386841504,0.01148184,87094.0,87083.0,0.29272807]
[1769386841660,0.01148184,87094.0,87078.0,1.09094952]
[1769386841661,1.08335393,87093.0,87078.0,1.09094952]
[1769386841861,0.01148211,87092.0,87075.0,0.2928695]
[1769386842086,1.0948359,87093.0,87075.0,0.2928695]
[1769386842287,1.08335393,87092.0,87075.0,0.2928695]
[1769386842494,0.30373323,87092.0,87075.0,0.2928695]
[1769386842696,0.31521534,87092.0,87075.0,0.2928695]
[1769386842998,1.08335393,87087.0,87075.0,0.00014143]
[1769386843221,0.01148303,87085.0,87075.0,0.00014143]
[1769386843427,0.0114829,87086.0,87075.0,0.00014143]
[1769386843747,1.0948367,87087.0,87075.0,0.00014143]
[1769386843960,1.08335393,87087.0,87075.0,0.00014143]
[1769386846975,1.38708716,87087.0,87075.0,0.00014143]
[1769386847551,1.08335393,87087.0,87075.0,0.00014143]
[1769386847702,1.39856927,87092.0,87075.0,0.00014143]
[1769386847903,1.38708716,87092.0,87075.0,0.00014143]
[1769386848104,0.01148145,87097.0,87076.0,0.01148422]
[1769386848302,1.25975393,87099.0,87080.0,0.01148369]
[1769386848303,1.08335393,87099.0,87080.0,0.01148369]
[1769386848518,1.08335393,87099.0,87083.0,1.38367759]
[1769386848741,1.08335393,87099.0,87084.0,0.00772459]
[1769386848945,0.30373323,87100.0,87084.0,1.09867411]
[1769386849238,0.30373323,87100.0,87085.0,1.09094952]
[1769386849641,0.1764,87101.0,87085.0,1.38367759]
[1769386849842,0.01148131,87098.0,87085.0,1.38367759]
[1769386850042,0.01148131,87098.0,87085.0,0.29272807]
[1769386850495,0.01148118,87099.0,87085.0,0.29272807]
[1769386851123,0.01148158,87096.0,87085.0,0.29272807]
[1769386851250,0.01148184,87094.0,87079.0,1.09094952]
[1769386851454,0.01,87085.0,87076.0,0.01148422]
[1769386851659,0.30373323,87091.0,87075.0,1.39530337]
[1769386851991,1.08335393,87095.0,87076.0,0.30421229]
[1769386852196,1.08335393,87095.0,87076.0,0.29272807]
[1769386852400,1.08335393,87095.0,87076.0,1.10243374]
[1769386852640,1.09483564,87095.0,87077.0,0.29272807]
[1769386852840,1.08335393,87093.0,87077.0,0.29272807]
[1769386853039,0.01148224,87091.0,87077.0,0.29272807]
[1769386853265,0.0114825,87089.0,87075.0,0.00014143]
[1769386853463,0.01148277,87087.0,87075.0,0.00014143]
[1769386853639,1.08335393,87086.0,87075.0,0.00014143]
[1769386853845,1.38708716,87086.0,87075.0,0.00014143]
[1769386854049,1.08335393,87085.0,87075.0,0.00014143]
[1769386854404,0.30373323,87086.0,87075.0,0.00014143]
[1769386855960,0.31521613,87086.0,87075.0,0.00014143]
[1769386856148,0.30373323,87086.0,87075.0,0.00014143]
[1769386856511,1.3842289,87086.0,87075.0,0.00014143]
[1769386856712,1.38708716,87085.0,87075.0,0.00014143]
[1769386857455,0.01148316,87084.0,87075.0,0.00014143]
[1769386857672,1.09197923,87081.0,87073.0,0.17636]
[1769386857872,1.0921202,87081.0,87073.0,0.17636]
[1769386858079,1.08063664,87081.0,87073.0,0.17636]
[1769386858309,0.00014097,87081.0,87073.0,0.17636]
[1769386859475,0.00014097,87081.0,87074.0,0.00456521]
[1769386859878,0.00014097,87081.0,87074.0,0.01720255]
[1769386860630,0.00014097,87081.0,87074.0,0.01836852]
[1769386861183,0.00014097,87081.0,87075.0,1.09094952]
[1769386861381,0.22960132,87108.0,87073.0,0.17636]
[1769386861382,1.08108057,87090.0,87073.0,0.17636]
[1769386861732,1.08108057,87089.0,87074.0,0.00115942]
[1769386861974,1.08108057,87087.0,87074.0,0.00115942]
[1769386862724,0.01838453,87086.0,87074.0,0.00115942]
[1769386863368,1.08108057,87089.0,87074.0,0.27310277]
[1769386863573,0.2812331,87092.0,87075.0,0.01148435]
[1769386863770,0.01148145,87097.0,87077.0,0.27194335]
[1769386863981,0.17636,87102.0,87073.0,0.17636]
[1769386863982,0.00999954,87077.0,87073.0,0.17636]
[1769386866145,0.00999954,87077.0,87063.0,1.13577124]
[1769386866146,1.06870493,87076.0,87063.0,0.17636]
[1769386866527,1.34993803,87076.0,87063.0,0.17650097]
[1769386866726,0.29271626,87084.0,87069.0,0.01896276]
[1769386866928,0.01838453,87083.0,87069.0,1e-08]
[1769386867127,0.01838453,87083.0,87064.0,1.41920039]
[1769386867287,0.01838453,87083.0,87070.0,0.34569097]
[1769386867487,0.2812331,87084.0,87070.0,0.34569097]
[1769386867666,0.18784224,87091.0,87070.0,0.34569097]
[1769386867866,1.06870493,87088.0,87069.0,1.40771459]
[1769386868075,0.29961763,87087.0,87069.0,1.40771459]
[1769386868274,1.06870493,87086.0,87069.0,1.40771459]
[1769386868475,0.01838453,87085.0,87069.0,1.40771459]
[1769386868880,0.01838453,87085.0,87070.0,0.01148501]
[1769386869082,0.01838453,87085.0,87069.0,1.41919973]
[1769386869267,0.01838453,87085.0,87069.0,1.40771459]
[1769386869498,0.01838453,87085.0,87069.0,0.27194335]
[1769386869694,1.06870493,87082.0,87063.0,1.32375814]
[1769386869964,0.29784333,87081.0,87063.0,1.31227221]
[1769386870107,0.2812331,87079.0,87063.0,0.17650097]
[1769386870312,1.06870493,87075.0,87063.0,0.17650097]
[1769386872066,0.00999954,87063.0,87056.0,0.04592]
[1769386872263,0.00999954,87063.0,87046.0,0.1764]
[1769386872264,0.89396897,87059.0,87046.0,0.1764]
[1769386872440,0.89396897,87057.0,87046.0,0.1764]
[1769386872645,0.05743241,87059.0,87037.0,0.27194335]
[1769386872846,0.2812331,87055.0,87035.0,0.0462837]
[1769386873046,0.06891956,87058.0,87035.0,0.0462837]
[1769386873047,0.2812331,87051.0,87035.0,0.0462837]
[1769386873271,0.2812331,87051.0,87036.0,1.14726073]
[1769386873452,0.89008345,87052.0,87036.0,1.40771459]
[1769386873654,0.89008345,87052.0,87037.0,0.01148936]
[1769386873836,0.89008345,87052.0,87038.0,0.01148923]
[1769386874261,0.2812331,87056.0,87040.0,0.01148897]
[1769386874456,0.06891336,87066.0,87040.0,0.01148897]
[1769386874457,0.29271705,87078.0,87055.0,1.14725823]
[1769386874637,0.1764,87083.0,87055.0,1.14725823]
[1769386874638,1.39265691,87077.0,87059.0,0.01148646]
[1769386874836,1.37427238,87077.0,87060.0,0.01148633]
[1769386875182,1.37427238,87077.0,87059.0,0.01148646]
[1769386875410,0.29961763,87076.0,87057.0,1.40771459]
[1769386875625,1.37427238,87075.0,87057.0,1.40771459]
[1769386875849,0.01838453,87074.0,87057.0,1.40771459]
[1769386876209,1.12290829,87074.0,87057.0,0.27194335]
[1769386876407,1.39011038,87072.0,87055.0,0.00046999]
[1769386876630,1.39011038,87072.0,87058.0,0.01148659]
[1769386876828,1.09303928,87077.0,87061.0,0.01148619]
[1769386877031,1.40849491,87076.0,87061.0,0.01148619]
[1769386877353,1.40849491,87076.0,87059.0,0.01148646]
[1769386877354,1.39011038,87076.0,87059.0,0.01148646]
[1769386877495,1.11142381,87075.0,87056.0,1.34412932]
[1769386877696,1.09303928,87074.0,87056.0,1.34412932]
[1769386877942,1.09303928,87073.0,87056.0,1.34412932]
[1769386878600,0.01148488,87071.0,87056.0,0.28853125]
[1769386878736,0.01148488,87071.0,87055.0,0.00046999]
[1769386878737,1.40849491,87070.0,87055.0,0.00046999]
[1769386878940,1.39011038,87070.0,87055.0,0.00046999]
[1769386879274,0.01838453,87069.0,87055.0,0.00046999]
[1769386879478,1.09303928,87067.0,87055.0,0.00046999]
[1769386879634,1.11142381,87066.0,87055.0,0.00046999]
[1769386879841,0.01148514,87069.0,87055.0,0.00046999]
[1769386880026,1.40159578,87067.0,87055.0,0.00046999]
[1769386880234,0.01838453,87066.0,87055.0,0.00046999]
[1769386880686,0.00046999,87055.0,87049.0,0.1764]
[1769386880863,0.00094065,87055.0,87049.0,0.1764]
[1769386881066,0.00047066,87055.0,87049.0,0.1764]
[1769386881855,0.00047066,87055.0,87040.0,0.01148897]
[1769386882055,0.00047066,87055.0,87039.0,0.0114891]
[1769386882253,0.00047066,87055.0,87040.0,0.01148897]
[1769386882458,0.00047066,87055.0,87041.0,0.01148883]
[1769386882775,0.00047066,87055.0,87038.0,0.28853125]
[1769386882940,1.09621836,87053.0,87038.0,0.28853125]
[1769386883144,1.39328946,87053.0,87038.0,0.28853125]
[1769386883344,1.09621836,87052.0,87037.0,0.1764]
[1769386883548,1.09621836,87051.0,87039.0,0.0114891]
[1769386884385,1.09621836,87051.0,87037.0,0.1764]
[1769386884773,0.00047066,87055.0,87040.0,0.01148897]
[1769386885180,0.00047066,87055.0,87039.0,1.05559807]
[1769386885379,0.00047066,87055.0,87040.0,0.01148897]
[1769386885578,0.00047066,87055.0,87039.0,1.05559807]
[1769386885994,0.29754176,87055.0,87037.0,0.28853125]
[1769386886203,0.29754176,87055.0,87035.0,0.01185333]
[1769386886204,1.09621836,87051.0,87035.0,0.0003637]
[1769386886410,0.06939274,87055.0,87035.0,0.0003637]
[1769386886411,0.00047066,87055.0,87036.0,1.06708756]
[1769386886607,0.00047066,87055.0,87038.0,1.34412932]
[1769386886811,1.09621836,87054.0,87038.0,0.28853125]
[1769386887018,0.00047066,87055.0,87038.0,0.30002048]
[1769386887218,0.2970711,87052.0,87035.0,0.0003637]
[1769386887421,0.2970711,87050.0,87036.0,0.01148949]
[1769386887771,1.09621836,87054.0,87037.0,1.05559807]
[1769386888597,0.01195765,87055.0,87035.0,0.0003637]
[1769386888598,1.09621836,87042.0,87035.0,0.0003637]
[1769386889011,1.10770706,87042.0,87035.0,0.0003637]
[1769386889232,0.2970711,87041.0,87035.0,0.0003637]
[1769386889425,1.39328946,87038.0,87035.0,0.0003637]
[1769386889637,1.09621836,87045.0,87035.0,0.0003637]
[1769386889883,1.39328946,87044.0,87035.0,0.0003637]
[1769386890082,1.09621836,87043.0,87035.0,0.0003637]
[1769386891272,1.09621836,87042.0,87035.0,0.0003637]
[1769386891477,1.096222,87035.0,87018.0,0.01149187]
[1769386891690,0.01149042,87029.0,87017.0,0.28853125]
[1769386891891,1.0958583,87032.0,87017.0,0.28853125]
[1769386892087,1.10734832,87032.0,87017.0,0.28853125]
[1769386892336,1.0958583,87032.0,87017.0,0.28853125]
[1769386893892,0.28415632,87031.0,87012.0,0.17644]
[1769386894093,0.01148963,87035.0,87011.0,0.0003994]
[1769386894094,1.0958583,87028.0,87011.0,0.0003994]
[1769386894359,0.69592583,87021.0,87011.0,0.0003994]
[1769386894558,0.01149147,87021.0,87011.0,0.0003994]
[1769386894705,0.98008215,87021.0,87011.0,0.0003994]
[1769386895113,0.28415632,87021.0,87011.0,0.0003994]
[1769386895313,0.28415632,87021.0,87011.0,0.0005405]
[1769386895314,0.69592583,87020.0,87011.0,0.0005405]
[1769386896114,0.69592583,87020.0,87011.0,0.0005079]
[1769386896313,0.28415632,87021.0,87011.0,0.0005079]
[1769386896580,0.69592583,87025.0,87011.0,0.0005079]
[1769386896781,0.98008215,87025.0,87011.0,0.0005079]
[1769386897416,0.01149029,87030.0,87011.0,0.0005079]
[1769386897417,0.28415632,87036.0,87019.0,0.01149174]
[1769386897647,0.19482453,87035.0,87019.0,1.1259187]
[1769386897845,0.19482453,87035.0,87020.0,0.01149161]
[1769386898051,0.19482453,87035.0,87019.0,1.1259187]
[1769386898212,0.28415632,87034.0,87020.0,0.0003668]
[1769386898411,0.69592583,87033.0,87020.0,0.0003668]
[1769386899715,0.69592583,87029.0,87020.0,0.0003668]
[1769386899964,0.72580091,87028.0,87020.0,0.0003668]
[1769386900169,0.01149068,87027.0,87020.0,0.0003668]
[1769386900350,0.0003668,87020.0,87011.0,0.0001411]
[1769386900785,0.01149015,87031.0,87014.0,0.27952784]
[1769386900967,0.01079555,87031.0,87016.0,0.01149213]
[1769386901114,0.17648,87036.0,87011.0,0.0001411]
[1769386901115,0.01838453,87035.0,87022.0,0.01149134]
[1769386901319,0.17648,87036.0,87021.0,0.01149147]
[1769386901656,0.17648,87040.0,87024.0,1.1259187]
[1769386901892,0.28415632,87043.0,87024.0,1.1259187]
[1769386901893,0.01838453,87039.0,87024.0,0.27952784]
[1769386902097,0.01838453,87038.0,87031.0,0.27952784]
[1769386902305,0.01838453,87047.0,87032.0,1.1259187]
[1769386902725,1.16426627,87047.0,87031.0,0.27952784]
[1769386902851,0.01148831,87045.0,87031.0,0.27952784]
[1769386903056,0.01838453,87044.0,87031.0,0.27952784]
[1769386903278,1.15736991,87046.0,87031.0,0.27952784]
[1769386903279,0.01838453,87045.0,87031.0,0.27952784]
[1769386904602,0.02987284,87045.0,87031.0,0.27952784]
[1769386905210,0.01838453,87045.0,87031.0,0.27952784]
[1769386905951,0.28415632,87052.0,87035.0,0.29101747]
[1769386906241,0.19486453,87051.0,87036.0,1.40544654]
[1769386906826,1.14588174,87047.0,87030.0,0.08]
[1769386907028,0.01838453,87046.0,87030.0,0.01149029]
[1769386907207,0.01838453,87046.0,87029.0,1.13740912]
[1769386907437,0.01838453,87046.0,87030.0,0.01149029]
[1769386907656,1.14588174,87043.0,87029.0,0.27952784]
[1769386907883,1.16426627,87042.0,87023.0,0.27952784]
[1769386908056,0.01148857,87043.0,87020.0,0.01149161]
[1769386908057,1.14588174,87040.0,87020.0,0.01149161]
[1769386908257,0.28415632,87037.0,87020.0,0.01149161]
[1769386908462,1.44842259,87036.0,87020.0,0.01149161]
[1769386908674,1.44842259,87035.0,87016.0,0.27952784]
[1769386908859,0.01838453,87034.0,87016.0,0.27952784]
[1769386909059,1.44842259,87034.0,87016.0,0.29101997]
[1769386909310,0.60855795,87040.0,87019.0,0.27952784]
[1769386909463,1.43003806,87038.0,87020.0,0.27952784]
[1769386909670,1.15737123,87036.0,87020.0,0.27952784]
[1769386909984,0.01149002,87032.0,87020.0,0.27952784]
[1769386910354,0.01149002,87032.0,87014.0,0.17648]
[1769386910355,0.00999954,87020.0,87014.0,0.17648]
[1769386910537,0.00999954,87020.0,87009.0,1.1718787]
[1769386910683,0.01149134,87022.0,87009.0,0.04596]
[1769386910898,1.14588174,87022.0,87009.0,0.04596]
[1769386911091,1.14588174,87020.0,87009.0,0.04596]
[1769386911293,1.44152967,87020.0,87009.0,0.04596]
[1769386911495,1.43003806,87020.0,87009.0,0.04596]
[1769386911700,0.0001411,87011.0,86995.0,0.01149491]
[1769386911899,0.0002822,87011.0,86996.0,1.13741348]
[1769386912099,0.0002822,87011.0,87000.0,0.01149425]
[1769386912301,0.0001411,87011.0,87000.0,1.41694079]
[1769386912543,0.0001411,87011.0,87000.0,1.1259187]
[1769386912746,0.0001411,87011.0,87002.0,1.40544654]
[1769386912894,0.0001411,87011.0,86997.0,1.1259187]
[1769386913081,0.0001411,87011.0,86996.0,0.29102262]
[1769386913082,0.01149306,87009.0,86996.0,0.27952784]
[1769386913283,0.29564925,87010.0,86991.0,1.1259187]
[1769386913484,1.43557285,87009.0,86991.0,1.1259187]
[1769386913714,0.01149319,87008.0,86991.0,1.1259187]
[1769386914118,1.44706591,87009.0,86991.0,1.1259187]
[1769386914323,1.43557285,87009.0,86991.0,1.1259187]
[1769386914524,0.28415632,87009.0,86991.0,0.01149544]
[1769386914727,0.28415632,87009.0,86993.0,0.18797517]
[1769386914930,0.28415632,87009.0,86995.0,0.01149491]
[1769386915159,1.15141653,87010.0,86995.0,0.01149491]
[1769386915352,0.01149306,87009.0,86994.0,0.27952784]
[1769386915558,1.15141653,87008.0,86994.0,0.27952784]
[1769386915961,1.15141653,87008.0,86995.0,0.01149491]
[1769386916169,0.0001411,87011.0,86999.0,0.01149438]
[1769386916382,0.0001411,87011.0,86997.0,1.13741334]
[1769386916888,0.0001411,87011.0,86993.0,0.17648]
[1769386916889,0.28415632,87009.0,86993.0,0.17648]
[1769386917059,0.01149306,87009.0,86986.0,0.0114961]
[1769386917280,0.0001411,87011.0,86989.0,0.0114957]
[1769386917281,0.28415632,87003.0,86989.0,0.0114957]
[1769386917437,0.28415632,87003.0,86985.0,0.03568]
[1769386917438,1.15141653,87002.0,86985.0,0.03568]
[1769386917635,1.15141653,87002.0,86985.0,0.04717623]
[1769386917852,1.15141653,87002.0,86986.0,0.0114961]
[1769386918178,1.15141653,87002.0,86989.0,0.17652]
[1769386918524,0.28415632,87003.0,86988.0,0.01176403]
[1769386918756,0.28415632,87003.0,86989.0,0.17652]
[1769386919478,0.28415632,87003.0,86988.0,0.1767882]
[1769386919679,0.01149425,87000.0,86988.0,0.1767882]
[1769386919814,0.01149464,86997.0,86988.0,0.1767882]
[1769386920027,1.43557285,86998.0,86988.0,0.1767882]
[1769386920272,1.43557285,86998.0,86988.0,0.0002682]
[1769386921029,0.01149464,86997.0,86988.0,0.0002682]
[1769386921275,0.01149478,86996.0,86988.0,0.0002682]
[1769386921470,0.01149464,86997.0,86988.0,0.0002682]
[1769386921672,1.43557285,86998.0,86988.0,0.0002682]
[1769386922343,0.28415632,87005.0,86988.0,0.01176403]
[1769386922544,0.01838453,87004.0,86989.0,0.0114957]
[1769386922823,0.08461345,87005.0,86989.0,0.29102354]
[1769386923034,1.15141653,87007.0,86991.0,0.01149544]
[1769386923248,1.15141653,87007.0,86991.0,0.29102328]
[1769386923460,0.0001411,87011.0,86996.0,0.01149478]
[1769386923676,0.0001411,87011.0,86997.0,1.43407044]
[1769386925205,0.0001411,87011.0,86998.0,0.01149451]
[1769386925389,0.0001411,87011.0,87002.0,0.01149398]
[1769386925524,0.0001411,87011.0,87003.0,0.26871012]
[1769386925725,0.0001411,87011.0,87002.0,1.1768543]
[1769386925726,1.2734373,87027.0,87009.0,0.01149306]
[1769386925971,0.17658494,87027.0,87014.0,0.0114924]
[1769386926169,0.17658494,87027.0,87015.0,0.26871012]
[1769386926378,0.17658494,87027.0,87015.0,0.28020239]
[1769386926616,0.17658494,87027.0,87015.0,0.26871012]
[1769386926831,6.494e-05,87027.0,87016.0,1.17685245]
[1769386927057,0.10340357,87042.0,87022.0,1.16536032]